Cogmind - Beta 15 @@@ ROGUE MODE // 2025.08.21 @ 00:28:33 Player: NQH Result: Destroyed by YY-UK8(R) with Subdweller Laser Performance ------------- Evolutions (0) 0 Regions Visited (3) 600 Robots Destroyed (11) 55 Value Destroyed (261) 261 Prototype IDs (1) 20 Alien Tech Used (0) 0 Bonus (0) 0 TOTAL SCORE: 936 Bonus ------- None Cogmind --------- Core Integrity 0/250 Matter 289/300 Energy 169/170 System Corruption 5% Temperature Cool (50) Movement Flying (117) Ox1 Location -10/Subcaves Parts ------- > --- POWER (1) -------- Makeshift Power Source > --- PROPULSION (2) --- Flight Unit Flight Unit > --- UTILITY (2) ------ Subdweller Optics Experimental Sensor Array > --- WEAPON (2) ------- Subdweller Beam Cannon Light Assault Rifle > --- INVENTORY (5) ---- Flight Unit Subdweller Optics Subdweller Laser Mining Claw Piercing Trap Peak State ------------ > --- POWER ------------ Makeshift Power Source > --- PROPULSION ------- Flight Unit Flight Unit > --- UTILITY ---------- Subdweller Optics Experimental Sensor Array > --- WEAPON ----------- Subdweller Beam Cannon Light Assault Rifle > --- INVENTORY -------- Flight Unit Subdweller Optics Subdweller Laser Mining Claw Piercing Trap [Rating: 20] Favorites ----------- Power Makeshift Power Source Engine Makeshift Power Source Power Core Light Nuclear Core Propulsion Flight Unit Leg Aluminum Leg Flight Unit Flight Unit Utility High-capacity Matter Pod Device Experimental Sensor Array Storage High-capacity Matter Pod Weapon Mining Claw Energy Cannon Subdweller Beam Cannon Ballistic Gun Light Assault Rifle Slashing Weapon Mining Claw Build | -11 -10 -10 -10 ------- Run | Yrd Mat Min Sub Slots Evolved . | . . . . Power . | . . . . Propulsion . | . . . . Utility . | . . . . Weapon . | . . . . Parts Attached 15 | . . 11 4 Power 2 | . . 1 1 Engine 1 | . . . 1 Core 1 | . . 1 . Reactor . | . . . . Propulsion 5 | . . 4 1 Treads . | . . . . Leg 2 | . . 2 . Wheel . | . . . . Hover . | . . . . Flight 3 | . . 2 1 Utility 3 | . . 2 1 Device 2 | . . 1 1 Storage 1 | . . 1 . Processor . | . . . . Hackware . | . . . . Protection . | . . . . Artifact . | . . . . Weapon 5 | . . 4 1 Energy Gun . | . . . . Energy Cannon 2 | . . 1 1 Ballistic Gun 2 | . . 2 . Ballistic Cannon . | . . . . Launcher . | . . . . Special Weapon . | . . . . Impact Weapon . | . . . . Slashing Weapon 1 | . . 1 . Piercing Weapon . | . . . . Special Melee Weapon . | . . . . Unidentified Prototypes 1 | . . 1 . Parts Lost 5 | . . 3 2 Power 1 | . . 1 . Propulsion 1 | . . . 1 Utility 1 | . . . 1 Weapon 2 | . . 2 . Highest Loss Streak 2 | . . 2 1 To Critical Strikes . | . . . . Average Backups 1 | . . . 3 Power . | . . . . Propulsion . | . . . 1 Utility . | . . . . Weapon . | . . . 1 Tool/Special . | . . . . Unused Backups 3 | . . . 3 Power . | . . . . Propulsion 1 | . . . 1 Utility 1 | . . . 1 Weapon 1 | . . . 1 Tool/Special . | . . . . Average Slot Usage (%) 78 | . . 59 98 Engine 7 | . . . 13 Core 2 | . . 7 . Leg 4 | . . 10 . Flight 16 | . . 2 28 Device 11 | . . 7 14 Storage 11 | . . 11 12 Energy Cannon 9 | . . 8 9 Ballistic Gun 6 | . . 6 6 Slashing Weapon 7 | . . 4 11 Peak Build Rating 20 | . . 17 20 Average Rating 13 | . . 9 18 On Entrance 3 | . . . 14 Naked Turns 101 | . 41 60 . Heaviest Build 19 | . . 15 19 Greatest Support 20 | 3 3 20 8 Greatest Overweight (x) 4 | . . 4 2 Average Overweight (x) . | . . . 1 Largest Inventory Capacity 5 | 5 5 5 5 Average Capacity 5 | 5 5 5 5 Most Carried 5 | . . 5 5 Average Carried 2 | . . . 4 Final Capacity 5 | 5 5 5 5 Final Carried 5 | . . 2 5 Class Distribution -------------------- 97% | Mutant Dominant Class ---------------- Mutant | -10/Materials Mutant | -10/Mines Mutant | -10/Subcaves Resources | -11 -10 -10 -10 ----------- Run | Yrd Mat Min Sub Matter Collected 475 | 200 . 214 61 Remotely . | . . . . Salvage Created 299 | . . 167 132 Parts 21 | . . 13 8 Haulers Intercepted . | . . . . Recyclers Shooed . | . . . . Parts Field Recycled . | . . . . Retrieved Matter . | . . . . Parts Self-Destructed 4 | . . . 4 Prevented . | . . . . Kills | -11 -10 -10 -10 ------- Run | Yrd Mat Min Sub Combat Hostiles Destroyed 11 | . . 8 3 Melee 3 | . . 3 . Guns 3 | . . 3 . Cannons 5 | . . 2 3 Classes Destroyed 3 | . . 2 1 Swarmer 6 | . . 6 . Grunt 2 | . . 2 . Subdweller 3 | . . . 3 Best Kill Streak 2 | . . 2 2 Combat Bots Only 2 | . . 2 2 Max Kills in Single Turn 1 | . . 1 1 Gunslinging . | . . . . Exploded . | . . . . Melee 1 | . . 1 . Uniques/NPCs Destroyed . | . . . . Combat | -11 -10 -10 -10 -------- Run | Yrd Mat Min Sub Hostile Shots Fired 81 | . 5 67 9 Missed 21 | . 2 14 5 Hits 60 | . 3 53 4 Projectile 60 | . 3 53 4 Damage Taken 648 | . 27 492 129 Core 262 | . 27 156 79 Absorbed by Shields . | . . . . Core Remaining (%) 100 | 100 . . . Volleys Fired 31 | . . 27 4 Largest 2 | . . 2 2 Hottest 100 | . . 80 100 Shots Fired 51 | . . 43 8 Gun 22 | . . 18 4 Cannon 29 | . . 25 4 Launcher . | . . . . Special . | . . . . Kinetic 22 | . . 18 4 Thermal 29 | . . 25 4 Explosive . | . . . . Electromagnetic . | . . . . Robot Hit Streak 7 | . . 6 7 Robot Miss Streak 4 | . . 4 1 Penetration Max . | . . . . Secondary Targets . | . . . . Shots Hit Robots 31 | . . 26 5 Core Hits 15 | . . 10 5 Critical Kills . | . . . . Critical Parts Destroyed . | . . . . Critical Strikes . | . . . . Melee Attacks 50 | . . 21 29 Impact . | . . . . Slashing 50 | . . 21 29 Piercing . | . . . . Sneak Attacks . | . . . . Combat Hostiles . | . . . . Follow-up Attacks . | . . . . Damage Inflicted 547 | . . 446 101 Guns 141 | . . 125 16 Cannons 295 | . . 210 85 Explosions . | . . . . Melee 99 | . . 99 . Ramming 12 | . . 12 . Kinetic 141 | . . 125 16 Thermal 295 | . . 210 85 Explosive . | . . . . Electromagnetic . | . . . . Impact . | . . . . Slashing 99 | . . 99 . Piercing . | . . . . Highest Corruption 5 | . . . 5 Average Corruption 5 | . . . 5 Corruption Purged . | . . . . Corruption Blocked . | . . . . Effects 2 | . . . 2 Message Errors 1 | . . . 1 Data Loss (major) 1 | . . . 1 Overload Shots . | . . . . Overflow Damage 16 | . . 16 . Projectiles 16 | . . 16 . Explosions . | . . . . Melee . | . . . . Knockbacks . | . . . . Impact . | . . . . Kinetic . | . . . . Secondary . | . . . . Self-Inflicted Damage . | . . . . Shots . | . . . . Rammed . | . . . . Targets Rammed 2 | . . 2 . Kicked 2 | . . 2 . Crushed . | . . . . Highest Temperature 144 | . . 144 68 Average Temperature 58 | . . 61 31 Received Heat Transfer 120 | . . 90 30 Siege Activations . | . . . . Martial Activations . | . . . . Shielding Activations . | . . . . Robots Disrupted . | . . . . Combat Hostiles . | . . . . Robots Corrupted . | . . . . Combat Hostiles . | . . . . Parts Fried . | . . . . Impact Corruptions . | . . . . Robots Melted . | . . . . Combat Hostiles . | . . . . Parts Melted 2 | . . 1 1 Heat Transferred 555 | . . 444 111 Parts Sabotaged . | . . . . Parts Stolen . | . . . . Parts Stripped . | . . . . Power Chain Reactions . | . . . . Alert | -11 -10 -10 -10 ------- Run | Yrd Mat Min Sub Maximum Alert Level . | . . . . Low Security (%) 100 | 100 100 100 . Level 1 . | . . . . Level 2 . | . . . . Level 3 . | . . . . Level 4 . | . . . . Level 5 . | . . . . High Security . | . . . . Max Security . | . . . . Peak Influence 90 | . . 90 . Initial . | . . . . Average 29 | . . 33 . Influence Increases 236 | . . 236 . Destroy 0b10 Robot/C 160 | . . 160 . Destroy Leader 30 | . . 30 . Destroy Structure 1 | . . 1 . Lose Combat Pursuer 45 | . . 45 . Influence Decreases 236 | . . 222 14 Entered New Map 8 | . . . 8 Time Decay 198 | . . 192 6 Lost Part 30 | . . 30 . Squads Dispatched . | . . . . Investigation . | . . . . Extermination . | . . . . Reinforcement . | . . . . Assault . | . . . . Garrison . | . . . . Intercept . | . . . . Searches Triggered . | . . . . Construction Impeded . | . . . . Haulers Reinforced . | . . . . Active Scanning Responses . | . . . . Cargo Convoy Interrupts . | . . . . Stealth | -11 -10 -10 -10 --------- Run | Yrd Mat Min Sub Distress Signals 1 | . 1 . . Communications Jammed . | . . . . Distress Signals . | . . . . Times Spotted 19 | . 4 11 4 Peak Tracking Total 4 | . 4 3 2 Tactical Retreats 3 | . . 3 . Traps | -11 -10 -10 -10 ------- Run | Yrd Mat Min Sub Traps Triggered . | . . . . Indirectly . | . . . . Trap Hack Attempts . | . . . . Triggered . | . . . . Disarmed . | . . . . Reprogrammed . | . . . . Reused . | . . . . Traps Extracted . | . . . . Installed . | . . . . Triggered . | . . . . Most Traps Carried 1 | . . . 1 Machines | -11 -10 -10 -10 ---------- Run | Yrd Mat Min Sub Machines Disabled . | . . . . Max in Single Turn . | . . . . Machines Repaired . | . . . . Machines Dismantled . | . . . . Machines Sabotaged . | . . . . Overloaded Fab Kills . | . . . . Hacking | -11 -10 -10 -10 --------- Run | Yrd Mat Min Sub Machines Accessed . | . . . . Terminals . | . . . . Fabricators . | . . . . Repair Stations . | . . . . Recycling Units . | . . . . Scanalyzers . | . . . . Garrison Access . | . . . . Total Hacks . | . . . . Successful . | . . . . Failed . | . . . . Catastrophic . | . . . . Database Lockouts . | . . . . Manual . | . . . . Terminals . | . . . . Fabricators . | . . . . Repair Stations . | . . . . Recycling Units . | . . . . Scanalyzers . | . . . . Garrison Access . | . . . . Terminal Hacks . | . . . . Fabricator Hacks . | . . . . Repair Station Hacks . | . . . . Recycling Unit Hacks . | . . . . Scanalyzer . | . . . . Garrison Access Hacks . | . . . . Unauthorized Hacks . | . . . . Terminals . | . . . . Fabricators . | . . . . Repair Stations . | . . . . Recycling Units . | . . . . Scanalyzers . | . . . . Garrison Access . | . . . . Data Cores Recovered . | . . . . Used . | . . . . Hacking Detections . | . . . . Full Trace Events . | . . . . Feedback Events . | . . . . Feedback Blocked . | . . . . Robot Schematics Acquired . | . . . . Robots Built . | . . . . Authchips . | . . . . Time . | . . . . Total Robot Build Rating . | . . . . Part Schematics Acquired . | . . . . Parts Built . | . . . . Authchips . | . . . . Time . | . . . . Total Part Build Rating . | . . . . Parts Repaired . | . . . . Time . | . . . . Parts Recycled . | . . . . Recycled Matter . | . . . . Retrieved Matter . | . . . . Retrieved Components . | . . . . Parts Scanalyzed . | . . . . Part Schematics Acquired . | . . . . Parts Damaged . | . . . . Bothacking | -11 -10 -10 -10 ------------ Run | Yrd Mat Min Sub Used RIF Installer . | . . . . Robots Hacked . | . . . . Non-combat . | . . . . Combat . | . . . . Robot Hacks Applied . | . . . . Relay Couplers Released . | . . . . Fabnet Peak Effective % . | . . . . Robots Rewired . | . . . . Allies Hacked . | . . . . Hacks Repelled . | . . . . Allies | -11 -10 -10 -10 -------- Run | Yrd Mat Min Sub Total Allies . | . . . . Largest Group . | . . . . Highest-Rated Group . | . . . . Highest-Rated Ally . | . . . . Total Orders . | . . . . Ally Attacks . | . . . . Total Damage . | . . . . Kills . | . . . . Allies Corrupted . | . . . . Allies Melted . | . . . . Intel | -11 -10 -10 -10 ------- Run | Yrd Mat Min Sub Active Infowar (turns) 882 | . . 244 638 Optics 35 | . . . 35 Sensors 882 | . . 244 638 Robot Analysis Total . | . . . . Derelict Logs Recovered 3 | . . 1 2 Drone Launches . | . . . . Drone Recoveries . | . . . . Exploration | -11 -10 -10 -10 ------------- Run | Yrd Mat Min Sub Turns Passed 1173 | 24 41 470 638 Spaces Moved 723 | 48 81 257 337 Core 262 | 48 81 133 . Treads . | . . . . Legs 110 | . . 110 . Wheels . | . . . . Hover . | . . . . Flight 351 | . . 14 337 Fastest Speed 37 | 50 50 37 37 Average Speed 119 | 50 50 109 154 Slowest Speed 250 | 50 50 250 200 Overloaded Moves . | . . . . Propulsion Burnouts . | . . . . Robots Hopped . | . . . . Potential Cave-ins 4 | . . 1 3 Cave-ins Triggered 1 | . . . 1 Exploration Rate (%) 18 | 4 21 31 17 Regions Visited 3 Branch Regions 2 Pre-discovered Areas . | . . . . Known Exits Taken 1 | . . 1 . Unknown Exits Taken 2 | 1 1 . . Scrap Searched 1 | . . 1 . Spaces Dug 9 | . . 3 6 Terrain Destroyed 9 | . . 3 6 Melee 9 | . . 3 6 Projectile . | . . . . AOE . | . . . . Terrain Rammed . | . . . . Walls Destroyed . | . . . . Machines Disabled . | . . . . Actions | -11 -10 -10 -10 --------- Run | Yrd Mat Min Sub Total 869 | 47 80 355 387 Wait 34 | . . 27 7 Move 720 | 47 80 256 337 Hop . | . . . . Pick Up 8 | . . 4 4 Fast Attach 11 | . . 9 2 Attach 5 | . . 4 1 Detach 3 | . . 3 . Swap 3 | . . . 3 Drop 2 | . . 2 . Fire 31 | . . 27 4 Melee 50 | . . 21 29 Ram . | . . . . Kick 2 | . . 2 . Crush . | . . . . Escape Stasis . | . . . . Rewire . | . . . . Trap . | . . . . Miscellaneous . | . . . . Route ------- -11/Scrapyard -10/Materials -10/Mines (discovered 3 exits: [*Mat x2] / *Sub) -10/Subcaves History --------- Turn | Location | Event 3 | -11/Scrapyard | Discovered new exit (range 15) 25 | -11/Scrapyard | Entered Materials 26 | -10/Materials | Met a group of wandering Federalists 62 | -10/Materials | Discovered new exit (range 8) 66 | -10/Materials | Entered Mines 91 | -10/Mines | Met a Derelict bent on vengeance 94 | -10/Mines | Identified exit to Subcaves 258 | -10/Mines | Core integrity fell below 50% 288 | -10/Mines | Found a damaged Exp. Sensor Array with a note attached 292 | -10/Mines | Found Prototype Device 292 | -10/Mines | Identified Exp. Sensor Array 301 | -10/Mines | Discovered new exit (range 12) 313 | -10/Mines | Build established: Mutant 383 | -10/Mines | Discovered new exit (range 7) 536 | -10/Mines | Entered Subcaves 558 | -10/Subcaves | Shifting Twisted Machinery released Piercing Trap 559 | -10/Subcaves | Shifting Twisted Machinery released Sub. Beam Cannon 559 | -10/Subcaves | Shifting Twisted Machinery released Sub. Laser 560 | -10/Subcaves | Shifting Twisted Machinery released Mak. Power Source 717 | -10/Subcaves | Core integrity fell below 20% 850 | -10/Subcaves | A swath of the cavern ceiling suddenly collapsed 945 | -10/Subcaves | Learned Materials emergency access door positions 1096 | -10/Subcaves | Crushed by falling debris 1165 | -10/Subcaves | Learned location of 1 exit from Materials 1174 | -10/Subcaves | Destroyed by YY-UK8(R) with Subdweller Laser Last Messages --------------- 00757_ Acquired Sub. Laser. 00761_ Subatomizers dissect the Disposable Heat Sink. A swath of the cavern ceiling suddenly collapses. 00945_ Acquired derelict log, extracted data. Data stored: Materials emergency access points. 01096_ The unstable cave ceiling collapses. 01096_ Crushed by falling debris. 01096_ Hcp. Matter Pod destroyed. 01096_ System corrupted by crushing effect (+5). 01119_ System corrupted: Substantial component data lost. 01128_ ND-H5E(R) destroyed. 01130_ 11-KNW(R) destroyed. 01136_ Acquired 12 matter. 01139_ Acquired Sub. Optics. 01141_ Subatomizers dissect the Sub. Machine Gun. 01164_ 80S3GLERBA